bitfinex/quotes_BTCUSD_20241119
["timestamp","ask_amount","ask_price","bid_price","bid_amount"]
[1732039953392,5.09529427,93178.0,93171.0,0.15026]
[1732039953604,5.09529427,93178.0,93171.0,0.07513]
[1732039953995,5.09529427,93178.0,93170.0,0.0768]
[1732039954227,5.09529427,93178.0,93175.0,0.075127]
[1732039954452,5.09529427,93178.0,93170.0,0.18586255]
[1732039954453,5.09529427,93178.0,93177.0,0.075125]
[1732039954691,5.09529427,93178.0,93163.0,0.0017108]
[1732039954900,0.12370888,93172.0,93163.0,0.0017108]
[1732039955101,0.107322,93177.0,93163.0,0.0017108]
[1732039955312,5.09529427,93178.0,93163.0,0.0017108]
[1732039955534,0.107324,93176.0,93163.0,0.0017108]
[1732039955998,5.09529427,93178.0,93163.0,0.0768468]
[1732039956216,0.107325,93175.0,93163.0,0.0017108]
[1732039956440,0.107323,93177.0,93163.0,0.0017108]
[1732039956650,5.09529427,93178.0,93163.0,0.0017108]
[1732039956848,0.107322,93177.0,93163.0,0.0768468]
[1732039957054,5.09529427,93178.0,93163.0,0.0768468]
[1732039957055,0.107323,93176.0,93163.0,0.0017108]
[1732039957263,0.107325,93175.0,93163.0,0.0017108]
[1732039957478,5.09529427,93178.0,93163.0,0.0017108]
[1732039957479,0.107327,93173.0,93163.0,0.0017108]
[1732039957681,0.214647,93176.0,93163.0,0.0017108]
[1732039958378,5.09529427,93178.0,93163.0,0.0017108]
[1732039958580,0.10733,93171.0,93163.0,0.0017108]
[1732039958797,0.107331,93170.0,93163.0,0.0017108]
[1732039959016,0.10733,93170.0,93163.0,0.0017108]
[1732039959496,0.214645,93177.0,93163.0,0.0017108]
[1732039959935,0.107324,93176.0,93163.0,0.0017108]
[1732039960143,0.107324,93176.0,93163.0,0.0768468]
[1732039960347,0.107325,93175.0,93163.0,0.0017108]
[1732039960924,0.107326,93174.0,93163.0,0.0017108]
[1732039961135,5.09529427,93178.0,93163.0,0.0017108]
[1732039961136,0.107323,93177.0,93163.0,0.0017108]
[1732039962012,0.107322,93177.0,93163.0,0.0017108]
[1732039962245,5.09529427,93178.0,93164.0,0.075135]
[1732039962452,5.09529427,93178.0,93164.0,0.10906255]
[1732039962653,5.09529427,93178.0,93173.0,0.075129]
[1732039962854,5.09529427,93178.0,93169.0,0.075131]
[1732039962855,5.09529427,93178.0,93165.0,0.075135]
[1732039963108,5.09529427,93178.0,93164.0,0.10906255]
[1732039963313,5.09529427,93178.0,93168.0,0.075132]
[1732039963511,5.09529427,93178.0,93164.0,0.10906255]
[1732039963512,5.09529427,93178.0,93169.0,0.075131]
[1732039963664,5.09529427,93178.0,93164.0,0.10906255]
[1732039963879,5.09529427,93178.0,93163.0,0.0017108]
[1732039964099,0.107323,93176.0,93163.0,0.0017108]
[1732039964476,0.214648,93176.0,93163.0,0.0017108]
[1732039964693,5.09529427,93178.0,93163.0,0.0017108]
[1732039964916,0.107322,93177.0,93163.0,0.0017108]
[1732039965131,5.20261627,93178.0,93163.0,0.0017108]
[1732039965354,5.09529427,93178.0,93163.0,0.0017108]
[1732039965596,0.214648,93176.0,93163.0,0.0017108]
[1732039965803,0.107327,93173.0,93163.0,0.0017108]
[1732039966024,5.09529427,93178.0,93164.0,0.10906255]
[1732039966263,5.09529427,93178.0,93176.0,0.075126]
[1732039966486,5.09529427,93178.0,93175.0,0.150253]
[1732039966705,5.09529427,93178.0,93173.0,0.075128]
[1732039966920,5.09529427,93178.0,93174.0,0.075127]
[1732039967154,5.09529427,93178.0,93173.0,0.075128]
[1732039968046,5.09529427,93178.0,93172.0,0.075129]
[1732039968325,5.09529427,93178.0,93175.0,0.075127]
[1732039969356,5.09529427,93178.0,93168.0,0.075132]
[1732039969788,5.09529427,93178.0,93164.0,0.10906255]
[1732039970011,5.09529427,93178.0,93168.0,0.075132]
[1732039970204,5.09529427,93178.0,93169.0,0.075132]
[1732039970442,5.09529427,93178.0,93163.0,0.11077335]
[1732039970881,0.107337,93164.0,93163.0,0.0017108]
[1732039971079,0.107352,93151.0,93128.0,0.0789]
[1732039971248,0.23106088,93151.0,93128.0,0.0789]
[1732039971448,0.23106088,93151.0,93128.0,0.154065]
[1732039971776,0.23106088,93151.0,93128.0,0.0789]
[1732039971996,0.23106088,93151.0,93131.0,0.075162]
[1732039972202,0.23106088,93151.0,93128.0,0.0789]
[1732039972364,0.23106088,93151.0,93130.0,0.075163]
[1732039972612,0.01,93142.0,93124.0,0.0017118]
[1732039972801,0.12370888,93142.0,93124.0,0.0017118]
[1732039973232,0.12370888,93130.0,93124.0,0.0017118]
[1732039974274,0.107382,93125.0,93124.0,0.0017118]
[1732039974672,0.107382,93125.0,93124.0,0.0016718]
[1732039977926,0.107382,93125.0,93124.0,0.0016318]
[1732039978649,0.087382,93125.0,93124.0,0.0016318]
[1732039979266,0.087382,93125.0,93124.0,0.0015918]
[1732039979527,0.12370888,93155.0,93124.0,0.19145435]
[1732039979726,0.10736,93145.0,93132.0,0.075161]
[1732039979908,0.107364,93141.0,93124.0,0.19302004]
[1732039980141,0.12370888,93141.0,93133.0,0.0015744]
[1732039980338,0.214742,93135.0,93124.0,0.0015918]
[1732039980574,0.12370888,93136.0,93124.0,0.0015918]
[1732039981002,0.12370888,93136.0,93134.0,0.075159]
[1732039981238,0.12370888,93144.0,93143.0,0.075153]
[1732039981455,0.12370888,93153.0,93152.0,0.075145]
[1732039981708,1.0,93160.0,93159.0,0.07514]
[1732039986660,1.0008557,93160.0,93159.0,0.07514]
[1732039988270,1.0008557,93160.0,93159.0,0.18420255]
[1732039994951,0.9128557,93160.0,93159.0,0.07514]
[1732039999362,0.9128557,93160.0,93146.0,0.0017114]
[1732040000227,0.9128557,93160.0,93159.0,0.07514]
[1732040003219,0.9128557,93160.0,93153.0,0.075145]
[1732040003438,0.9128557,93160.0,93155.0,0.075142]
[1732040003658,0.9128557,93160.0,93155.0,0.075143]
[1732040003866,0.9128557,93160.0,93146.0,0.11077395]
[1732040003867,0.9128557,93160.0,93158.0,0.07514]
[1732040004182,0.9128557,93160.0,93154.0,0.075143]
[1732040004337,0.9128557,93160.0,93146.0,0.0017114]
[1732040004338,0.90636262,93160.0,93147.0,0.07515]
[1732040004547,0.90636262,93160.0,93146.0,0.0017114]
[1732040004747,0.90636262,93160.0,93152.0,0.075145]
[1732040004953,0.90636262,93160.0,93159.0,0.07514]
[1732040009957,0.81836262,93160.0,93159.0,0.07514]
[1732040015453,0.79806262,93160.0,93159.0,0.07514]
[1732040020720,0.79806262,93160.0,93159.0,0.18420255]
[1732040022640,0.79806262,93160.0,93159.0,0.26270255]
[1732040022871,0.79806262,93160.0,93159.0,0.26441415]
[1732040024932,0.71006262,93160.0,93159.0,0.26441415]
[1732040025136,0.71006262,93160.0,93159.0,0.36441415]
[1732040028492,0.71006262,93160.0,93159.0,0.28591415]
[1732040029822,0.71006262,93160.0,93159.0,0.0768516]
[1732040030970,0.71006262,93160.0,93159.0,0.0017116]
[1732040031660,0.71006262,93160.0,93159.0,0.0768516]
[1732040032122,0.71006262,93160.0,93159.0,0.0017116]
[1732040032558,0.71006262,93160.0,93159.0,0.0768516]
[1732040032969,0.71006262,93160.0,93147.0,0.00041662]
[1732040033197,0.71006262,93160.0,93159.0,0.07514]
[1732040034730,0.71006262,93160.0,93159.0,0.0768516]
[1732040035925,0.71006262,93160.0,93159.0,0.0017116]
[1732040036883,0.71006262,93160.0,93159.0,0.0016716]
[1732040037012,0.71006262,93160.0,93159.0,0.0660776]
[1732040037624,0.71006262,93160.0,93159.0,0.0660376]
[1732040038594,0.71006262,93160.0,93159.0,0.0659976]
[1732040038735,0.71006262,93160.0,93159.0,0.0659576]
[1732040038999,0.71006262,93160.0,93135.0,0.13370888]
[1732040039000,0.79256262,93160.0,93147.0,0.00041662]
[1732040039195,0.12370888,93157.0,93147.0,0.00037662]
[1732040039409,0.83976262,93160.0,93147.0,0.00037662]
[1732040039837,0.85910462,93160.0,93149.0,0.064412]
[1732040040038,0.75176262,93160.0,93147.0,0.00033662]
[1732040040238,0.75176262,93160.0,93157.0,0.064407]
[1732040040239,0.62206262,93160.0,93157.0,0.064407]
[1732040040490,0.62206262,93160.0,93147.0,0.00033662]
[1732040040882,0.66571378,93160.0,93152.0,0.06437]
[1732040041255,0.66571378,93160.0,93147.0,0.00033662]
[1732040041256,0.62206262,93160.0,93159.0,0.064406]
[1732040041467,0.62206262,93160.0,93159.0,0.064366]
[1732040041716,0.62206262,93160.0,93159.0,0.064326]
[1732040041936,0.62206262,93160.0,93159.0,0.064246]
[1732040042362,0.62206262,93160.0,93159.0,0.064206]
[1732040042599,0.62206262,93160.0,93159.0,0.064126]
[1732040042814,0.62206262,93160.0,93159.0,0.064086]
[1732040043048,0.62206262,93160.0,93159.0,0.064406]
[1732040043277,0.62206262,93160.0,93159.0,0.064366]
[1732040043494,0.62206262,93160.0,93159.0,0.064326]
[1732040045495,0.62206262,93160.0,93157.0,0.064406]
[1732040045675,0.62206262,93160.0,93159.0,0.064406]
[1732040046306,0.62206262,93160.0,93159.0,0.0661176]
[1732040046512,0.62206262,93160.0,93159.0,0.0017116]
[1732040046750,0.62206262,93160.0,93159.0,0.0661176]
[1732040047540,0.62206262,93160.0,93159.0,0.0017116]
[1732040047732,0.62206262,93160.0,93159.0,0.0661176]
[1732040049937,0.62206262,93160.0,93159.0,0.25228015]
[1732040050150,0.62206262,93160.0,93159.0,0.35228015]
[1732040054864,0.53406262,93160.0,93159.0,0.35228015]
[1732040056699,0.53406262,93160.0,93159.0,0.33728015]
[1732040057406,0.53406262,93160.0,93159.0,0.46098903]
[1732040059164,0.53406262,93160.0,93159.0,0.46270063]
[1732040061567,0.53406262,93160.0,93159.0,0.53647511]
[1732040062125,0.53406262,93160.0,93159.0,0.46270063]
[1732040065178,0.44819062,93160.0,93159.0,0.47270063]
[1732040065378,0.44819062,93160.0,93159.0,0.34899175]
[1732040065586,0.38378662,93160.0,93159.0,0.35099175]
[1732040065765,0.38378662,93160.0,93159.0,0.40974956]
[1732040066422,0.34085062,93160.0,93159.0,0.41749175]
[1732040066629,0.34085062,93160.0,93159.0,0.47824956]
[1732040066835,0.29791462,93160.0,93159.0,0.48024956]
[1732040067066,0.25497862,93160.0,93159.0,0.47824956]
[1732040067267,0.23351062,93160.0,93159.0,0.45824578]
[1732040067423,0.19057462,93160.0,93159.0,0.45824578]
[1732040067636,0.19057462,93160.0,93159.0,0.37836074]
[1732040067980,0.14763862,93160.0,93159.0,0.44476674]
[1732040068188,0.12617062,93160.0,93159.0,0.44276674]
[1732040068623,0.12617062,93160.0,93159.0,0.44476674]
[1732040069250,0.12617062,93160.0,93159.0,0.44276674]
[1732040069942,0.03817062,93160.0,93159.0,0.44276674]
[1732040070150,0.03817062,93160.0,93159.0,0.44476674]
[1732040070361,0.01670262,93160.0,93159.0,0.45276674]
[1732040070573,6.2e-07,93160.0,93159.0,0.45276674]
[1732040070772,6.2e-07,93160.0,93159.0,0.41201271]
[1732040070986,6.2e-07,93160.0,93159.0,0.45149924]
[1732040071186,6.2e-07,93160.0,93159.0,0.44949924]
[1732040071416,6.2e-07,93160.0,93159.0,0.45149924]
[1732040071740,6.2e-07,93160.0,93159.0,0.44949924]
[1732040071952,6.2e-07,93160.0,93159.0,0.43649924]
[1732040072155,6.2e-07,93160.0,93159.0,0.43449924]
[1732040072809,6.2e-07,93160.0,93159.0,0.43649924]
[1732040073452,6.2e-07,93160.0,93159.0,0.3069691]
[1732040073676,6.2e-07,93160.0,93159.0,0.30116668]
[1732040073874,6.2e-07,93160.0,93159.0,0.30316668]
[1732040074718,6.2e-07,93160.0,93159.0,0.30116668]
[1732040075606,6.2e-07,93160.0,93159.0,0.40116668]
[1732040075812,6.2e-07,93160.0,93159.0,0.40316668]
[1732040076018,6.2e-07,93160.0,93159.0,0.38816668]
[1732040076510,6.2e-07,93160.0,93159.0,0.47086668]
[1732040077387,6.2e-07,93160.0,93159.0,0.46886668]
[1732040077615,6.2e-07,93160.0,93159.0,0.43138015]
[1732040079178,6.2e-07,93160.0,93159.0,0.38916855]
[1732040079640,6.2e-07,93160.0,93159.0,0.36616855]
[1732040080922,6.2e-07,93160.0,93159.0,0.38916855]
[1732040081361,6.2e-07,93160.0,93159.0,0.42860418]
[1732040081572,6.2e-07,93160.0,93159.0,0.47740418]
[1732040081974,6.2e-07,93160.0,93159.0,0.43968015]
[1732040082214,6.2e-07,93160.0,93159.0,0.44168015]
[1732040083031,6.2e-07,93160.0,93159.0,0.41868015]
[1732040083237,5.09529427,93178.0,93167.0,0.01]
[1732040083451,5.09529427,93178.0,93177.0,0.18810188]
[1732040083664,5.09529427,93178.0,93177.0,0.29716443]
[1732040083890,5.09529427,93178.0,93177.0,0.12370888]
[1732040084111,5.09529427,93178.0,93177.0,0.18810188]
[1732040084979,5.00729427,93178.0,93177.0,0.18810188]
[1732040086742,5.00729427,93178.0,93177.0,0.29716443]
[1732040086952,5.00729427,93178.0,93177.0,0.53087331]
[1732040087397,5.00729427,93178.0,93177.0,0.52087331]
[1732040087622,5.00729427,93178.0,93177.0,0.53087331]
[1732040088691,5.00729427,93178.0,93177.0,0.52087331]
[1732040088905,5.00729427,93178.0,93177.0,0.53087331]
[1732040090306,5.00729427,93178.0,93177.0,0.52087331]
[1732040090517,5.00729427,93178.0,93177.0,0.53087331]
[1732040090757,5.00729427,93178.0,93177.0,0.39716443]
[1732040090976,5.00729427,93178.0,93177.0,0.40716443]
[1732040093488,5.00729427,93178.0,93177.0,0.40887583]
[1732040094565,5.00729427,93178.0,93177.0,0.41087583]
[1732040094773,5.00729427,93178.0,93177.0,0.40887583]
[1732040094984,5.00729427,93178.0,93177.0,0.52898313]
[1732040095412,5.00729427,93178.0,93177.0,0.49207583]
[1732040095619,4.80729427,93178.0,93177.0,0.49207583]
[1732040097333,4.76251627,93178.0,93177.0,0.61578471]
[1732040097579,4.61293462,93178.0,93177.0,0.75943763]
[1732040098247,4.61293462,93178.0,93177.0,0.75743763]
[1732040098679,4.54854262,93178.0,93177.0,0.75743763]
[1732040098924,4.50561462,93178.0,93177.0,0.75743763]
[1732040099374,4.48415062,93178.0,93177.0,0.75743763]
[1732040099611,4.39829462,93178.0,93177.0,0.64624008]
[1732040099850,0.0004,93199.0,93177.0,0.64624008]
[1732040099851,8.8262347,93191.0,93190.0,0.099384]
[1732040100079,8.59840291,93191.0,93190.0,1.97720915]
[1732040100309,8.0629958,93191.0,93190.0,2.1580267]
[1732040100534,7.9556908,93191.0,93190.0,1.17086431]
[1732040100743,7.9556908,93191.0,93190.0,1.08036431]
[1732040100984,7.83629657,93191.0,93190.0,1.13712234]
[1732040101212,7.606546,93191.0,93190.0,1.21477291]
[1732040101464,7.520702,93191.0,93190.0,1.22476877]
[1732040101710,7.499241,93191.0,93190.0,1.19177291]
[1732040102128,4.643671,93191.0,93190.0,1.19177291]
[1732040102348,4.62221,93191.0,93190.0,1.19177291]
[1732040102800,4.546288,93191.0,93190.0,1.19177291]
[1732040103013,4.409016,93191.0,93190.0,1.02882174]
[1732040103228,4.409016,93191.0,93190.0,1.11164533]
[1732040103445,4.328774,93191.0,93190.0,1.10964533]
[1732040103656,4.328774,93191.0,93190.0,1.11164533]
[1732040103657,4.264391,93191.0,93190.0,1.11164533]
[1732040103871,4.264391,93191.0,93190.0,1.0771911]
[1732040104107,4.264391,93191.0,93190.0,1.04885946]
[1732040104351,4.264391,93191.0,93190.0,1.09178246]
[1732040104583,4.24293,93191.0,93190.0,1.09178246]
[1732040104988,4.157086,93191.0,93190.0,1.09178246]
[1732040105209,4.120386,93191.0,93190.0,1.09178246]
[1732040105677,3.976331,93191.0,93190.0,1.09349346]
[1732040105882,3.95338086,93191.0,93190.0,1.09349346]
[1732040106324,3.94438278,93191.0,93190.0,1.09349346]
[1732040106544,3.84119978,93191.0,93190.0,1.09349346]
[1732040106785,3.69120778,93191.0,93190.0,1.09349346]
[1732040107211,3.69120778,93191.0,93190.0,0.93464287]
[1732040107413,3.64828578,93191.0,93190.0,1.18206063]
[1732040107648,3.58766378,93191.0,93190.0,1.14600827]
[1732040107875,3.58766378,93191.0,93190.0,1.18206063]
[1732040107876,3.56620278,93191.0,93190.0,1.18206063]
[1732040108577,3.56620278,93191.0,93190.0,0.60400827]
[1732040108578,3.45889778,93191.0,93190.0,0.60400827]
[1732040108789,3.45889778,93191.0,93190.0,0.46275024]
[1732040109012,3.45889778,93191.0,93190.0,0.44431065]
[1732040109227,3.45889778,93191.0,93190.0,0.33277143]
[1732040109443,3.45889778,93191.0,93190.0,0.37569443]
[1732040109653,3.35159278,93191.0,93190.0,0.46110937]
[1732040109863,3.35159278,93191.0,93190.0,0.4220076]
[1732040110306,3.35159278,93191.0,93190.0,0.29829872]
[1732040110515,3.47799278,93191.0,93190.0,0.142923]
[1732040111867,3.50099278,93191.0,93190.0,0.142923]
[1732040112153,3.50099278,93191.0,93190.0,0.1]
[1732040112391,0.1494,93189.0,93188.0,0.042923]
[1732040113286,0.043,93178.0,93159.0,0.13142048]
[1732040113533,0.1494,93164.0,93163.0,0.042935]
[1732040113757,0.1494,93164.0,93159.0,0.0077116]
[1732040113758,0.033,93160.0,93159.0,0.0506476]
[1732040114217,0.033,93160.0,93149.0,0.042941]
[1732040114218,0.20166255,93160.0,93149.0,0.042941]
[1732040114448,0.20166255,93160.0,93100.0,0.24487288]
[1732040114449,0.033,93149.0,93148.0,0.042942]
[1732040114663,0.033,93149.0,93124.0,0.0445448]
[1732040114664,0.043,93147.0,93127.0,0.12370888]
[1732040114885,0.033,93147.0,93146.0,0.0446544]
[1732040115106,0.0614,93149.0,93148.0,0.042942]
[1732040115561,0.0614,93149.0,93148.0,0.15200455]
[1732040115770,0.0614,93149.0,93148.0,0.042942]
[1732040117068,0.0714,93149.0,93146.0,0.0017114]
[1732040117284,0.0714,93149.0,93147.0,0.042942]
[1732040117285,0.01,93148.0,93147.0,0.042942]
[1732040117891,0.0814,93149.0,93148.0,0.042942]
[1732040118468,0.082,93149.0,93148.0,0.042942]
[1732040120807,0.082,93149.0,93148.0,1.042942]
[1732040121501,0.0826,93149.0,93148.0,1.042942]
[1732040123017,0.0826,93149.0,93124.0,0.0015918]
[1732040123018,0.0773,93130.0,93124.0,0.0015918]
[1732040123227,0.0773,93130.0,93129.0,0.042951]
[1732040123862,0.01,93125.0,93124.0,0.0015918]
[1732040124098,0.15206255,93125.0,93124.0,0.0015918]
[1732040124326,0.19896255,93125.0,93124.0,0.0015918]
[1732040124562,0.30634455,93125.0,93124.0,0.0015918]
[1732040124992,0.0899,93125.0,93124.0,0.0445448]
[1732040125201,0.0873,93130.0,93129.0,0.042951]
[1732040125628,0.22936255,93130.0,93125.0,0.042953]
[1732040125839,0.033,93125.0,93124.0,0.0015918]
[1732040126043,0.043,93125.0,93124.0,0.0015918]
[1732040126224,0.15206255,93125.0,93124.0,0.0015918]
[1732040127118,0.25944455,93125.0,93124.0,0.0015918]
[1732040127535,0.15206255,93125.0,93124.0,0.0015918]
[1732040128389,0.01,93116.0,93114.0,0.01758315]
[1732040128603,0.01,93111.0,93110.0,0.042959]
[1732040128830,0.01,93111.0,93110.0,0.06052377]
[1732040129061,0.01,93111.0,93110.0,0.01756477]
[1732040129268,0.01,93111.0,93106.0,0.01756477]
[1732040129470,0.01,93098.0,93097.0,0.042965]
[1732040129678,0.01,93097.0,93069.0,0.0017088]
[1732040129881,0.043,93084.0,93075.0,0.042927]
[1732040130124,0.31949155,93084.0,93075.0,0.042927]
[1732040130347,0.31949155,93084.0,93069.0,0.0017088]
[1732040130769,0.107446,93070.0,93069.0,0.0017088]
[1732040130985,0.21650855,93070.0,93069.0,0.01926919]
[1732040131272,0.10906255,93070.0,93069.0,0.01926919]
[1732040131492,0.29180855,93070.0,93069.0,0.0017088]
[1732040131698,0.29180855,93070.0,93069.0,0.01924904]
[1732040131901,0.29180855,93070.0,93058.0,0.0017078]
[1732040131902,0.107449,93067.0,93058.0,0.0017078]
[1732040132109,0.23951155,93067.0,93058.0,0.0017078]
[1732040132312,0.36322043,93067.0,93058.0,0.0017078]
[1732040132524,0.107458,93059.0,93058.0,0.0017078]
[1732040132735,0.107458,93059.0,93052.0,0.001712]
[1732040132736,0.023,93053.0,93052.0,0.001712]
[1732040132944,0.23952755,93053.0,93052.0,0.001712]
[1732040133802,0.13206255,93053.0,93052.0,0.001712]
[1732040134253,0.214907,93064.0,93052.0,0.001712]
[1732040134254,0.04383467,93056.0,93055.0,0.042985]
[1732040134466,0.10372922,93067.0,93063.0,0.042981]
[1732040134676,0.0588,93069.0,93064.0,0.042981]
[1732040134903,0.12570888,93102.0,93052.0,0.00386116]
[1732040134904,0.0788,93085.0,93074.0,0.01]
[1732040135128,0.0788,93103.0,93085.0,0.01]
[1732040135336,0.0788,93103.0,93081.0,0.12370888]
[1732040135337,0.10906255,93102.0,93082.0,0.02797522]
[1732040135582,0.10906255,93102.0,93082.0,0.01]
[1732040135780,0.10906255,93102.0,93086.0,0.04297]
[1732040135983,0.0788,93103.0,93100.0,0.042964]
[1732040136239,0.04461852,93116.0,93095.0,0.01]
[1732040136510,0.107395,93114.0,93096.0,0.042966]
[1732040136737,0.1074,93110.0,93097.0,0.042965]
[1732040136995,0.10906255,93109.0,93097.0,0.04454582]
[1732040137200,0.10906255,93109.0,93098.0,0.042965]
[1732040137201,0.21646355,93109.0,93098.0,0.042965]
[1732040137439,0.10906255,93109.0,93098.0,0.00157632]
[1732040137661,0.10906255,93109.0,93108.0,0.04296]
[1732040137892,0.10906255,93109.0,93106.0,0.042961]
[1732040138093,0.10906255,93109.0,93095.0,0.02]
[1732040138300,0.10906255,93109.0,93101.0,0.042963]
[1732040138723,0.0788,93122.0,93121.0,0.042954]
[1732040138958,0.0465,93142.0,93126.0,0.042952]
[1732040139163,0.107367,93138.0,93126.0,0.042952]
[1732040139367,0.214742,93135.0,93113.0,0.01]
[1732040139573,0.214746,93133.0,93114.0,0.042957]
[1732040139781,0.10906255,93132.0,93112.0,0.042959]
[1732040139987,0.10906255,93132.0,93113.0,0.01]
[1732040140203,0.08936566,93142.0,93081.0,0.01]
[1732040140204,0.10906255,93115.0,93081.0,0.01]
[1732040140456,0.023,93112.0,93087.0,0.01]
[1732040140687,0.023,93100.0,93073.0,0.01]
[1732040140910,0.023,93100.0,93068.0,0.00996]
[1732040140911,0.107441,93075.0,93068.0,0.00996]
[1732040141142,0.023,93093.0,93068.0,0.00996]
[1732040141345,0.107438,93077.0,93069.0,0.02811554]
[1732040141593,0.107441,93075.0,93070.0,0.02811554]
[1732040141811,0.107441,93075.0,93071.0,0.02811554]
[1732040142024,0.214867,93081.0,93072.0,0.02811554]
[1732040142025,0.10906255,93074.0,93072.0,0.02811554]
[1732040142230,0.10906255,93074.0,93068.0,0.00996]
[1732040142231,0.130442,93073.0,93068.0,0.00996]
[1732040142447,0.10906255,93072.0,93069.0,0.02815497]
[1732040142650,0.14351903,93096.0,93072.0,0.042977]
[1732040142651,0.10906255,93080.0,93072.0,0.042977]
[1732040142894,0.10906255,93080.0,93073.0,0.07113097]
[1732040143104,0.10906255,93080.0,93074.0,0.02815497]
[1732040143341,0.10906255,93080.0,93075.0,0.02815497]
[1732040143588,0.10906255,93080.0,93068.0,0.00996]
[1732040143589,0.06079424,93080.0,93076.0,0.02815497]
[1732040144011,0.06079424,93080.0,93077.0,0.04577043]
[1732040144012,0.130436,93078.0,93077.0,0.04577043]
[1732040144240,0.45437155,93078.0,93077.0,0.01760391]
[1732040144897,0.36637155,93078.0,93077.0,0.01760391]
[1732040145098,0.45437155,93078.0,93077.0,0.01760391]
[1732040145329,0.10906255,93078.0,93077.0,0.01760391]
[1732040145545,0.214814,93104.0,93088.0,0.042969]
[1732040145754,0.214814,93104.0,93076.0,0.01]
[1732040145755,0.10906255,93100.0,93089.0,0.06057291]
[1732040145966,0.10906255,93100.0,93070.0,0.18412056]
[1732040145967,0.0451,93117.0,93092.0,0.01]
[1732040146174,0.0451,93117.0,93088.0,0.18412056]
[1732040146175,0.04376408,93114.0,93089.0,0.042969]
[1732040146388,0.10906255,93113.0,93097.0,0.042965]
[1732040146605,0.0802,93120.0,93102.0,0.01]
[1732040146852,0.10906255,93119.0,93112.0,0.042958]
[1732040147284,0.10906255,93119.0,93105.0,0.01]
[1732040147490,0.10906255,93119.0,93112.0,0.042958]
[1732040147935,0.10906255,93119.0,93102.0,0.01]
[1732040148172,0.023,93116.0,93099.0,0.042964]
[1732040148419,0.0802,93120.0,93104.0,0.042962]
[1732040148420,0.023,93114.0,93104.0,0.042962]
[1732040148619,0.10906255,93113.0,93107.0,0.042961]
[1732040149310,0.0802,93120.0,93108.0,0.01760287]
[1732040149532,0.10906255,93119.0,93109.0,0.01760287]
[1732040149753,0.10906255,93119.0,93110.0,0.01760287]
[1732040149977,0.10906255,93117.0,93111.0,0.01760287]
[1732040150208,0.0802,93120.0,93113.0,0.042958]
[1732040150422,0.10906255,93119.0,93114.0,0.01760287]
[1732040150709,0.10906255,93119.0,93107.0,0.23708156]
[1732040150710,0.10906255,93119.0,93118.0,0.042956]
[1732040151390,0.0008568,93139.0,93118.0,0.01]
[1732040151614,0.0008568,93139.0,93126.0,0.18412056]
[1732040151615,0.10906255,93138.0,93126.0,0.18412056]
[1732040151900,0.10906255,93138.0,93135.0,0.042948]
[1732040152141,0.10906255,93138.0,93124.0,0.052953]
[1732040152142,0.18412056,93135.0,93096.0,0.01]
[1732040152343,0.10906255,93130.0,93114.0,0.042957]
[1732040152568,0.10906255,93130.0,93116.0,0.01]
[1732040153036,0.10906255,93130.0,93128.0,0.042951]
[1732040153493,0.08,93136.0,93128.0,0.042951]
[1732040153696,0.0008568,93139.0,93135.0,0.042948]
[1732040153899,0.10906255,93138.0,93137.0,0.042947]
[1732040154114,0.10906255,93138.0,93126.0,0.01]
[1732040154321,0.10906255,93138.0,93128.0,0.042951]
[1732040154527,0.0008568,93139.0,93126.0,0.01]
[1732040154729,0.10906255,93138.0,93126.0,0.01]
[1732040155355,0.0008568,93139.0,93133.0,0.042949]
[1732040155577,0.0008568,93139.0,93122.0,0.01]
[1732040155578,0.0008568,93139.0,93130.0,0.04295]
[1732040155795,0.0008568,93139.0,93137.0,0.042947]
[1732040156202,0.0008568,93139.0,93135.0,0.042948]
[1732040156425,0.0008568,93139.0,93129.0,0.01]
[1732040156643,0.0008568,93139.0,93134.0,0.042948]
[1732040156918,0.0008568,93139.0,93135.0,0.042948]
[1732040157364,0.0008568,93139.0,93129.0,0.04295]
[1732040157588,0.10991935,93139.0,93105.0,0.18412056]
[1732040157776,0.10906255,93138.0,93125.0,0.042952]
[1732040157986,0.10906255,93138.0,93119.0,0.042955]
[1732040158471,0.10906255,93138.0,93105.0,0.18412056]
[1732040158472,0.023,93135.0,93105.0,0.18412056]
[1732040158711,0.10906255,93134.0,93106.0,0.042961]
[1732040158927,0.10906255,93134.0,93105.0,0.18412056]
[1732040159140,1.62050481,93139.0,93106.0,0.10906255]
[1732040159363,1.62050481,93139.0,93117.0,0.18412056]
[1732040159814,1.62050481,93139.0,93135.0,0.042948]
[1732040160038,1.62050481,93139.0,93117.0,0.18412056]
[1732040160039,0.10906255,93138.0,93117.0,0.18412056]
[1732040160264,0.10906255,93138.0,93131.0,0.04295]
[1732040160908,0.10906255,93138.0,93117.0,0.18412056]
[1732040161117,0.10906255,93138.0,93125.0,0.042952]
[1732040161332,0.10906255,93138.0,93117.0,0.18412056]
[1732040161539,0.10906255,93138.0,93132.0,0.042949]
[1732040161746,0.10906255,93138.0,93126.0,0.042952]
[1732040162196,0.10906255,93138.0,93129.0,0.04295]
[1732040162398,0.10906255,93138.0,93130.0,0.04295]
[1732040162809,0.10906255,93138.0,93121.0,0.042954]
[1732040163013,0.10906255,93138.0,93108.0,0.1]
[1732040163220,0.10906255,93138.0,93121.0,0.042954]
[1732040163462,0.10906255,93138.0,93108.0,0.1]
[1732040163463,0.10906255,93138.0,93127.0,0.042951]
[1732040163889,0.10906255,93138.0,93128.0,0.042951]
[1732040164102,0.10906255,93138.0,93129.0,0.04295]
[1732040164308,0.10906255,93138.0,93128.0,0.042951]
[1732040164563,0.10906255,93138.0,93118.0,0.042956]
[1732040164564,1.53250481,93139.0,93129.0,0.18412056]
[1732040164779,1.53250481,93139.0,93138.0,0.042947]
[1732040165253,1.53250481,93139.0,93138.0,0.22706756]
[1732040165463,1.53250481,93139.0,93138.0,0.33613011]
[1732040165722,1.53250481,93139.0,93138.0,0.43813011]
[1732040165963,1.51103181,93139.0,93138.0,0.49353011]
[1732040166189,1.46808581,93139.0,93138.0,0.62346017]
[1732040166875,1.21188581,93139.0,93138.0,0.57076017]
[1732040167366,0.9462785,93139.0,93138.0,0.76148073]
[1732040167602,0.8389135,93139.0,93138.0,0.76348073]
[1732040167821,0.8389135,93139.0,93138.0,0.76148073]
[1732040168057,0.61938256,93139.0,93138.0,0.76148073]
[1732040168294,0.61938256,93139.0,93138.0,0.78986838]
[1732040168295,0.52198516,93139.0,93138.0,0.78986838]
[1732040168500,0.33075869,93139.0,93138.0,0.42162726]
[1732040168712,0.33075869,93139.0,93138.0,0.76348073]